fUSD/lending_fUSD_20250826
["ID","MTS","AMOUNT","RATE_DAILY","PERIOD"]
[381521027,1756247461326,-619.31,0.00027397,5]
[381521028,1756247461338,-400.0,0.00027397,5]
[381521029,1756247461348,-400.0,0.00027397,5]
[381521030,1756247461358,-864.41,0.00027397,5]
[381521031,1756247461368,-1156.15,0.00027397,5]
[381521032,1756247461379,-614.55,0.00027397,5]
[381521033,1756247461388,-766.76,0.00027397,5]
[381521034,1756247461398,-774.57,0.00027397,5]
[381521035,1756247461409,-963.17,0.00027397,5]
[381521036,1756247461418,-474.02,0.00027397,5]
[381521037,1756247461428,-400.0,0.00027397,5]
[381521038,1756247461439,-522.27,0.00027397,5]
[381521039,1756247461449,-400.0,0.00027397,5]
[381521040,1756247461458,-400.0,0.00027397,5]
[381521041,1756247461468,-542.92,0.00027397,5]
[381521042,1756247461478,-527.27,0.00027397,5]
[381521043,1756247461487,-548.16071042,0.00027397,5]
[381521044,1756247461497,-739.7,0.00027397,5]
[381521045,1756247461508,-400.0,0.00027397,5]
[381521046,1756247461518,-400.0,0.00027397,5]
[381521047,1756247461528,-479.27,0.00027397,5]
[381521048,1756247461538,-400.0,0.00027397,5]
[381521049,1756247461547,-752.88,0.00027397,5]
[381521050,1756247461557,-400.0,0.00027397,5]
[381521051,1756247461566,-526.06,0.00027397,5]
[381521052,1756247461576,-400.0,0.00027397,5]
[381521053,1756247461585,-400.0,0.00027397,5]
[381521054,1756247461595,-929.38,0.00027397,5]
[381521055,1756247461604,-400.0,0.00027397,5]
[381521056,1756247461614,-400.0,0.00027397,5]
[381521057,1756247461624,-400.0,0.00027397,5]
[381521058,1756247461636,-400.0,0.00027397,5]
[381521059,1756247461646,-400.0,0.00027397,5]
[381521060,1756247461655,-400.0,0.00027397,5]
[381521061,1756247461666,-1111.58,0.00027397,5]
[381521062,1756247461676,-471.5,0.00027397,5]
[381521063,1756247461686,-339.30878624,0.00027397,5]
[381521064,1756247461695,-400.0,0.00027397,5]
[381521065,1756247461706,-698.27,0.00027397,5]
[381521066,1756247461716,-1226.36,0.00027397,5]
[381521067,1756247461725,-400.0,0.00027397,5]
[381521068,1756247461736,-400.0,0.00027397,5]
[381521069,1756247461746,-821.23,0.00027397,5]
[381521070,1756247461756,-979.87,0.00027397,5]
[381521071,1756247461767,-400.0,0.00027397,5]
[381521072,1756247461777,-675.68,0.00027397,5]
[381521073,1756247461788,-438.41,0.00027397,5]
[381521074,1756247461799,-793.81,0.00027397,5]
[381521075,1756247461808,-400.0,0.00027397,5]
[381521076,1756247461819,-476.81,0.00027397,5]
[381521077,1756247461830,-435.15,0.00027397,5]
[381521078,1756247461839,-400.0,0.00027397,5]
[381521079,1756247461849,-400.0,0.00027397,5]
[381521080,1756247461858,-400.0,0.00027397,5]
[381521081,1756247461868,-1000.0,0.00027397,5]
[381521082,1756247461878,-543.35,0.00027397,5]
[381521083,1756247461888,-689.43,0.00027397,5]
[381521084,1756247461898,-1676.47,0.00027397,5]
[381521085,1756247461907,-1430.93,0.00027397,5]
[381521086,1756247461918,-474.34,0.00027397,5]
[381521087,1756247461928,-400.0,0.00027397,5]
[381521088,1756247461937,-1081.21,0.00027397,5]
[381521089,1756247461947,-650.96,0.00027397,5]
[381521090,1756247461956,-728.38,0.00027397,5]
[381521091,1756247461966,-400.0,0.00027397,5]
[381521092,1756247461976,-421.92,0.00027397,5]
[381521093,1756247461986,-400.0,0.00027397,5]
[381521094,1756247461996,-475.17,0.00027397,5]
[381521095,1756247462005,-699.97,0.00027397,5]
[381521096,1756247462016,-234.0368035,0.00027397,5]
[381521097,1756247462025,-400.0,0.00027397,5]
[381521098,1756247462035,-400.0,0.00027397,5]
[381521099,1756247462044,-400.0,0.00027397,5]
[381521100,1756247462054,-400.0,0.00027397,5]
[381521101,1756247462064,-442.06,0.00027397,5]
[381521102,1756247462073,-969.86,0.00027397,5]
[381521103,1756247462082,-1246.16,0.00027397,5]
[381521104,1756247462092,-400.0,0.00027397,5]
[381521105,1756247462436,-693.1,0.00027397,5]
[381521106,1756247462503,-400.0,0.00027397,5]
[381521107,1756247462513,-608.37,0.00027397,5]
[381521108,1756247462523,-491.82044932,0.00027397,5]
[381521109,1756247462532,-515.86,0.00027397,5]
[381521110,1756247462541,-715.04,0.00027397,5]
[381521111,1756247462550,-400.0,0.00027397,5]
[381521112,1756247462559,-5183.76,0.00027397,5]
[381521113,1756247462569,-500.0,0.00027397,2]
[381521114,1756247462579,-500.0,0.00027397,2]
[381521115,1756247462588,-400.0,0.00027397,5]
[381521116,1756247462597,-911.76,0.00027397,5]
[381521117,1756247462607,-500.0,0.00027397,2]
[381521118,1756247462618,-500.0,0.00027397,2]
[381521119,1756247462627,-500.0,0.00027397,2]
[381521120,1756247462637,-500.0,0.00027397,2]
[381521121,1756247462646,-782.75,0.00027397,5]
[381521122,1756247462655,-500.0,0.00027397,2]
[381521123,1756247462664,-356.03978577,0.00027397,2]
[381521124,1756247462674,-623.35,0.00027397,5]
[381521125,1756247462683,-824.81,0.00027397,5]
[381521126,1756247462693,-400.0,0.00027397,5]
[381521127,1756247462703,-572.71,0.00027397,5]
[381521128,1756247462712,-322.15380766,0.00027397,5]
[381521129,1756247462721,-981.74,0.00027397,5]
[381521130,1756247462730,-495.62,0.00027397,5]
[381521131,1756247462740,-687.26,0.00027397,5]
[381521132,1756247462749,-400.0,0.00027397,5]
[381521133,1756247462759,-883.65,0.00027397,5]
[381521134,1756247462768,-622.89,0.00027397,5]
[381521135,1756247462778,-593.65,0.00027397,5]
[381521136,1756247462788,-797.6,0.00027397,5]
[381521137,1756247462798,-409.89,0.00027397,5]
[381521138,1756247462807,-1118.19,0.00027397,5]
[381521139,1756247462817,-400.0,0.00027397,5]
[381521140,1756247462826,-645.35,0.00027397,5]
[381521141,1756247462836,-400.0,0.00027397,5]
[381521142,1756247462845,-1528.99,0.00027397,5]
[381521143,1756247462856,-400.0,0.00027397,5]
[381521144,1756247462865,-510.73,0.00027397,5]
[381521145,1756247462875,-400.0,0.00027397,5]
[381521146,1756247462884,-400.0,0.00027397,5]
[381521147,1756247462894,-435.15,0.00027397,5]
[381521148,1756247462904,-491.13,0.00027397,5]
[381521149,1756247462913,-696.97,0.00027397,5]
[381521150,1756247462926,-400.0,0.00027397,5]
[381521151,1756247462936,-916.84,0.00027397,5]
[381521152,1756247462946,-400.0,0.00027397,5]
[381521153,1756247462958,-1032.76,0.00027397,5]
[381521154,1756247462969,-896.13,0.00027397,5]
[381521155,1756247462979,-946.35,0.00027397,5]
[381521156,1756247462988,-400.0,0.00027397,5]
[381521157,1756247462999,-862.17,0.00027397,5]
[381521158,1756247463008,-400.0,0.00027397,5]
[381521159,1756247463019,-463.47,0.00027397,5]
[381521160,1756247463029,-400.0,0.00027397,5]
[381521161,1756247463039,-483.95,0.00027397,5]
[381521162,1756247463049,-400.0,0.00027397,5]
[381521163,1756247463059,-400.0,0.00027397,5]
[381521164,1756247463070,-997.34,0.00027397,5]
[381521165,1756247463080,-331.40740703,0.00027397,5]
[381521166,1756247463090,-428.82,0.00027397,5]
[381521167,1756247463100,-400.0,0.00027397,5]
[381521168,1756247463110,-734.08,0.00027397,5]
[381521169,1756247463120,-840.07,0.00027397,5]
[381521170,1756247463130,-400.0,0.00027397,5]
[381521171,1756247463141,-523.38,0.00027397,5]
[381521172,1756247463152,-400.0,0.00027397,5]
[381521173,1756247463162,-481.87,0.00027397,5]
[381521174,1756247463172,-305.08,0.00027397,5]
[381521175,1756247463183,-400.0,0.00027397,5]
[381521176,1756247463193,-787.44,0.00027397,5]
[381521177,1756247463203,-709.87,0.00027397,5]
[381521178,1756247463213,-400.0,0.00027397,5]
[381521179,1756247463223,-400.0,0.00027397,5]
[381521180,1756247463233,-697.83,0.00027397,5]
[381521181,1756247463243,-400.0,0.00027397,5]
[381521182,1756247463252,-1050.98,0.00027397,5]
[381521183,1756247463263,-274.96172208,0.00027397,5]
[381521184,1756247463273,-1003.32,0.00027397,5]
[381521185,1756247463283,-1070.87,0.00027397,5]
[381521186,1756247463293,-694.78,0.00027397,5]
[381521187,1756247463302,-400.0,0.00027397,5]
[381521188,1756247463312,-1000.81,0.00027397,5]
[381521189,1756247463322,-522.07,0.00027397,5]
[381521190,1756247463334,-514.28,0.00027397,5]
[381521191,1756247463344,-646.92,0.00027397,5]
[381521192,1756247463353,-596.48,0.00027397,5]
[381521193,1756247463363,-705.89,0.00027397,5]
[381521194,1756247463373,-936.56,0.00027397,5]
[381521195,1756247463384,-400.0,0.00027397,5]
[381521196,1756247463394,-3901.4,0.00027397,5]
[381521197,1756247463404,-400.0,0.00027397,5]
[381521198,1756247463416,-881.27,0.00027397,5]
[381521199,1756247463426,-400.0,0.00027397,5]
[381521200,1756247463436,-400.0,0.00027397,5]
[381521201,1756247463447,-400.0,0.00027397,5]
[381521202,1756247463456,-580.1,0.00027397,5]
[381521203,1756247463466,-524.89041041,0.00027397,5]
[381521204,1756247463476,-935.93,0.00027397,5]
[381521205,1756247463486,-400.0,0.00027397,5]
[381521206,1756247463496,-400.0,0.00027397,5]
[381521207,1756247463506,-942.64,0.00027397,5]
[381521208,1756247463516,-899.5,0.00027397,5]
[381521209,1756247463526,-400.0,0.00027397,5]
[381521210,1756247463536,-547.55,0.00027397,5]
[381521211,1756247463546,-682.28,0.00027397,5]
[381521212,1756247463556,-639.36,0.00027397,5]
[381521213,1756247463566,-465.82,0.00027397,5]
[381521214,1756247463576,-1012.44,0.00027397,5]
[381521215,1756247463586,-400.09037392,0.00027397,5]
[381521216,1756247463596,-400.0,0.00027397,5]
[381521217,1756247463606,-400.0,0.00027397,5]
[381521218,1756247463616,-912.63,0.00027397,5]
[381521219,1756247463626,-523.2,0.00027397,5]
[381521220,1756247463637,-400.0,0.00027397,5]
[381521221,1756247463647,-719.54,0.00027397,5]
[381521222,1756247463657,-400.0,0.00027397,5]
[381521223,1756247463667,-400.0,0.00027397,5]
[381521224,1756247463676,-472.41,0.00027397,5]
[381521225,1756247463686,-400.0,0.00027397,5]
[381521226,1756247463696,-1229.64,0.00027397,5]
[381521227,1756247463706,-860.61,0.00027397,5]
[381521228,1756247463716,-984.75,0.00027397,5]
[381521229,1756247463726,-607.0,0.00027397,5]
[381521230,1756247463736,-400.0,0.00027397,5]
[381521231,1756247463746,-687.38,0.00027397,5]
[381521232,1756247463756,-569.53,0.00027397,5]
[381521233,1756247463766,-668.89,0.00027397,5]
[381521234,1756247463776,-484.98,0.00027397,5]
[381521235,1756247463786,-440.94512454,0.00027397,5]
[381521236,1756247463797,-808.19,0.00027397,5]
[381521237,1756247463808,-1041.94,0.00027397,5]
[381521238,1756247463820,-744.15,0.00027397,5]
[381521239,1756247463830,-1133.42,0.00027397,5]
[381521240,1756247463841,-9007.33,0.00027397,5]
[381521241,1756247463851,-400.0,0.00027397,5]
[381521242,1756247463862,-549.03,0.00027397,5]
[381521243,1756247463873,-1040.29,0.00027397,5]
[381521244,1756247463884,-400.0,0.00027397,5]
[381521245,1756247463895,-849.58,0.00027397,5]
[381521246,1756247463906,-400.0,0.00027397,5]
[381521247,1756247463916,-683.71,0.00027397,5]
[381521248,1756247463927,-400.0,0.00027397,5]
[381521249,1756247463937,-508.36,0.00027397,5]
[381521250,1756247463947,-400.0,0.00027397,5]
[381521251,1756247463957,-581.8,0.00027397,5]
[381521252,1756247463967,-739.83,0.00027397,5]
[381521253,1756247463977,-626.47,0.00027397,5]
[381521254,1756247463987,-400.0,0.00027397,5]
[381521255,1756247463998,-863.64,0.00027397,5]
[381521256,1756247464008,-521.98,0.00027397,5]
[381521257,1756247464018,-668.6,0.00027397,5]
[381521258,1756247464028,-400.0,0.00027397,5]
[381521259,1756247464038,-400.0,0.00027397,5]
[381521260,1756247464048,-576.45,0.00027397,5]
[381521261,1756247464058,-788.2,0.00027397,5]
[381521262,1756247464068,-3656.63,0.00027397,5]
[381521263,1756247464078,-562.45,0.00027397,5]
[381521264,1756247464088,-400.0,0.00027397,5]
[381521265,1756247464098,-680.67,0.00027397,5]
[381521266,1756247464108,-605.45,0.00027397,5]
[381521267,1756247464118,-864.46,0.00027397,5]
[381521268,1756247464128,-495.09,0.00027397,5]
[381521269,1756247464138,-809.79,0.00027397,5]
[381521270,1756247464148,-1579.41,0.00027397,5]
[381521271,1756247464158,-688.26,0.00027397,5]
[381521272,1756247464169,-731.76,0.00027397,5]
[381521273,1756247464179,-400.0,0.00027397,5]
[381521274,1756247464189,-424.13,0.00027397,5]
[381521275,1756247464198,-614.46,0.00027397,5]
[381521276,1756247464209,-1106.29,0.00027397,5]
[381521277,1756247464219,-1332.63,0.00027397,5]
[381521278,1756247464229,-893.01,0.00027397,5]
[381521279,1756247464239,-518.54,0.00027397,5]
[381521280,1756247464249,-510.64,0.00027397,5]
[381521281,1756247464259,-788.58,0.00027397,5]
[381521282,1756247464269,-400.0,0.00027397,5]
[381521283,1756247464279,-1097.28,0.00027397,5]
[381521284,1756247464288,-400.0,0.00027397,5]
[381521285,1756247464298,-839.92,0.00027397,5]
[381521286,1756247464307,-400.0,0.00027397,5]
[381521287,1756247464317,-426.78,0.00027397,5]
[381521288,1756247464327,-450.0,0.00027397,5]
[381521289,1756247464343,-860.28,0.00027397,5]
[381521290,1756247464353,-420.85,0.00027397,5]
[381521291,1756247464363,-400.0,0.00027397,5]
[381521292,1756247464374,-400.0,0.00027397,5]
[381521293,1756247464384,-762.7,0.00027397,5]
[381521294,1756247464394,-400.0,0.00027397,5]
[381521295,1756247464404,-1641.19,0.00027397,5]
[381521296,1756247464417,-656.55,0.00027397,5]
[381521297,1756247464427,-400.0,0.00027397,5]
[381521298,1756247464436,-485.97,0.00027397,5]
[381521299,1756247464446,-429.04,0.00027397,5]
[381521300,1756247464455,-978.26,0.00027397,5]
[381521301,1756247464465,-400.0,0.00027397,5]
[381521302,1756247464474,-492.07,0.00027397,5]
[381521303,1756247464484,-400.28586759,0.00027397,5]
[381521304,1756247464493,-822.36,0.00027397,5]
[381521305,1756247464504,-1276.38,0.00027397,5]
[381521306,1756247464513,-1158.05,0.00027397,5]
[381521307,1756247464523,-1725.54,0.00027397,5]
[381521308,1756247464535,-497.75,0.00027397,5]
[381521309,1756247464544,-1033.45,0.00027397,5]
[381521310,1756247464554,-622.78,0.00027397,5]
[381521311,1756247464565,-454.11,0.00027397,5]
[381521312,1756247464574,-636.82,0.00027397,5]
[381521313,1756247464584,-1131.45,0.00027397,5]
[381521314,1756247464593,-427.76,0.00027397,5]
[381521315,1756247464603,-400.0,0.00027397,5]
[381521316,1756247464612,-1164.81,0.00027397,5]
[381521317,1756247464622,-684.67,0.00027397,5]
[381521318,1756247464632,-940.04,0.00027397,5]
[381521319,1756247464643,-720.31,0.00027397,5]
[381521320,1756247464653,-1166.48,0.00027397,5]
[381521321,1756247464663,-438.38,0.00027397,5]
[381521322,1756247464672,-400.0,0.00027397,5]
[381521323,1756247464683,-534.75,0.00027397,5]
[381521324,1756247464692,-400.0,0.00027397,5]
[381521325,1756247464703,-771.72,0.00027397,5]
[381521326,1756247464712,-400.0,0.00027397,5]
[381521327,1756247464722,-400.0,0.00027397,5]
[381521328,1756247464733,-2299.71,0.00027397,5]
[381521329,1756247464742,-751.99,0.00027397,5]
[381521330,1756247464751,-400.0,0.00027397,5]
[381521331,1756247464761,-908.15,0.00027397,5]
[381521332,1756247464770,-400.0,0.00027397,5]
[381521333,1756247464779,-851.95,0.00027397,5]
[381521334,1756247464788,-585.93,0.00027397,5]
[381521335,1756247464798,-694.98,0.00027397,5]
[381521336,1756247464807,-780.56,0.00027397,5]
[381521337,1756247464816,-400.0,0.00027397,5]
[381521338,1756247464826,-400.0,0.00027397,5]
[381521339,1756247464836,-400.0,0.00027397,5]
[381521340,1756247464846,-400.23111934,0.00027397,5]
[381521341,1756247464855,-635.89,0.00027397,5]
[381521342,1756247464864,-400.0,0.00027397,5]
[381521343,1756247464874,-400.0,0.00027397,5]
[381521344,1756247464883,-3069.65,0.00027397,5]
[381521345,1756247464893,-946.54,0.00027397,5]
[381521346,1756247464903,-524.12,0.00027397,5]
[381521347,1756247465036,-400.0,0.00027397,5]
[381521348,1756247465047,-506.1,0.00027397,5]
[381521349,1756247465057,-400.0,0.00027397,5]
[381521350,1756247465066,-400.0,0.00027397,5]
[381521351,1756247465076,-400.0,0.00027397,5]
[381521352,1756247465086,-1293.95,0.00027397,5]
[381521353,1756247465095,-666.86,0.00027397,5]
[381521354,1756247465104,-204.45618593,0.00027397,5]
[381521355,1756247465114,-903.39,0.00027397,5]
[381521356,1756247465123,-400.0,0.00027397,5]
[381521357,1756247465132,-913.22,0.00027397,5]
[381521358,1756247465145,-565.23,0.00027397,5]
[381521359,1756247465154,-400.0,0.00027397,5]
[381521360,1756247465164,-400.0,0.00027397,5]
[381521361,1756247465174,-400.0,0.00027397,5]
[381521362,1756247465184,-492.19,0.00027397,5]
[381521363,1756247465193,-790.64,0.00027397,5]
[381521364,1756247465203,-400.0,0.00027397,5]
[381521365,1756247465212,-400.0,0.00027397,5]
[381521366,1756247465221,-484.25,0.00027397,5]
[381521367,1756247465231,-400.0,0.00027397,5]
[381521368,1756247465240,-400.0,0.00027397,5]
[381521369,1756247465249,-586.42,0.00027397,5]
[381521370,1756247465259,-400.73837694,0.00027397,5]
[381521371,1756247465268,-416.99,0.00027397,5]
[381521372,1756247465278,-1218.23,0.00027397,5]
[381521373,1756247465287,-1007.73,0.00027397,5]
[381521374,1756247465296,-400.59,0.00027397,5]
[381521375,1756247465305,-465.32,0.00027397,5]
[381521376,1756247465314,-400.0,0.00027397,5]
[381521377,1756247465325,-721.88,0.00027397,5]
[381521378,1756247465337,-400.0,0.00027397,5]
[381521379,1756247465346,-500.0,0.00027397,10]
[381521380,1756247465355,-727.5,0.00027397,5]
[381521381,1756247465364,-400.71776182,0.00027397,5]
[381521382,1756247465374,-426.32,0.00027397,5]
[381521383,1756247465384,-1039.96,0.00027397,5]
[381521384,1756247465394,-789.13,0.00027397,5]
[381521385,1756247465404,-400.0,0.00027397,5]
[381521386,1756247465415,-400.0,0.00027397,5]
[381521387,1756247465425,-400.0,0.00027397,5]
[381521388,1756247465435,-475.39,0.00027397,5]
[381521389,1756247465445,-774.64,0.00027397,5]
[381521390,1756247465455,-512.32,0.00027397,5]
[381521391,1756247465464,-752.45,0.00027397,5]
[381521392,1756247465473,-768.29,0.00027397,5]
[381521393,1756247465483,-400.0,0.00027397,5]
[381521394,1756247465492,-807.12,0.00027397,5]
[381521395,1756247465501,-478.85,0.00027397,5]
[381521396,1756247465511,-400.0,0.00027397,5]
[381521397,1756247465520,-718.67,0.00027397,5]
[381521398,1756247465530,-1035.88,0.00027397,5]
[381521399,1756247465540,-567.65,0.00027397,5]
[381521400,1756247465549,-400.0,0.00027397,5]
[381521401,1756247465558,-400.0,0.00027397,5]
[381521402,1756247465568,-1022.66,0.00027397,5]
[381521403,1756247465578,-848.06,0.00027397,5]
[381521404,1756247465587,-869.11,0.00027397,5]
[381521405,1756247465596,-400.0,0.00027397,5]
[381521406,1756247465605,-796.97,0.00027397,5]
[381521407,1756247465614,-469.96,0.00027397,5]
[381521408,1756247465623,-960.12,0.00027397,5]
[381521409,1756247465632,-797.4,0.00027397,5]
[381521410,1756247465643,-553.05,0.00027397,5]
[381521411,1756247465652,-706.37,0.00027397,5]
[381521412,1756247465661,-823.03,0.00027397,5]
[381521413,1756247465671,-588.46,0.00027397,5]
[381521414,1756247465681,-615.7,0.00027397,5]
[381521415,1756247465690,-400.0,0.00027397,5]
[381521416,1756247465699,-400.0,0.00027397,5]
[381521417,1756247465709,-400.0,0.00027397,5]
[381521418,1756247465719,-2892.86,0.00027397,5]
[381521419,1756247465728,-2034.0,0.00027397,5]
[381521420,1756247465737,-400.0,0.00027397,5]
[381521421,1756247465747,-609.86,0.00027397,5]
[381521422,1756247465756,-1157.98,0.00027397,5]
[381521423,1756247465766,-1104.46,0.00027397,5]
[381521424,1756247465775,-752.73,0.00027397,5]
[381521425,1756247465785,-879.55,0.00027397,5]
[381521426,1756247465794,-400.0,0.00027397,5]
[381521427,1756247465803,-435.47,0.00027397,5]
[381521428,1756247465813,-899.52,0.00027397,5]
[381521429,1756247465822,-370.89067107,0.00027397,5]
[381521430,1756247465831,-400.0,0.00027397,5]
[381521431,1756247465841,-400.0,0.00027397,5]
[381521432,1756247465851,-1412.37,0.00027397,5]
[381521433,1756247465860,-1235.55,0.00027397,5]
[381521434,1756247465870,-400.0,0.00027397,5]
[381521435,1756247465879,-1021.78,0.00027397,5]
[381521436,1756247465888,-400.0,0.00027397,5]
[381521437,1756247465897,-959.78,0.00027397,5]
[381521438,1756247465907,-400.0,0.00027397,5]
[381521439,1756247465916,-400.0,0.00027397,5]
[381521440,1756247465925,-458.68,0.00027397,5]
[381521441,1756247465934,-1005.67,0.00027397,5]
[381521442,1756247465943,-400.0,0.00027397,5]
[381521443,1756247465952,-544.07,0.00027397,5]
[381521444,1756247465961,-1060.9,0.00027397,5]
[381521445,1756247465971,-608.01,0.00027397,5]
[381521446,1756247465980,-695.01,0.00027397,5]
[381521447,1756247465989,-400.0,0.00027397,5]
[381521448,1756247465999,-666.15,0.00027397,5]
[381521449,1756247466008,-400.0,0.00027397,5]
[381521450,1756247466017,-1195.79,0.00027397,5]
[381521451,1756247466026,-510.39,0.00027397,5]
[381521452,1756247466035,-1269.56,0.00027397,5]
[381521453,1756247466044,-557.54,0.00027397,5]
[381521454,1756247466053,-400.0,0.00027397,5]
[381521455,1756247466063,-400.0,0.00027397,5]
[381521456,1756247466073,-858.95,0.00027397,5]
[381521457,1756247466082,-573.58,0.00027397,5]
[381521458,1756247466092,-713.72,0.00027397,5]
[381521459,1756247466102,-400.0,0.00027397,5]
[381521460,1756247466111,-400.0,0.00027397,5]
[381521461,1756247466120,-481.63,0.00027397,5]
[381521462,1756247466129,-400.0,0.00027397,5]
[381521463,1756247466139,-400.0,0.00027397,5]
[381521464,1756247466148,-618.42,0.00027397,5]
[381521465,1756247466158,-793.2,0.00027397,5]
[381521466,1756247466168,-400.0,0.00027397,5]
[381521467,1756247466177,-547.25,0.00027397,5]
[381521468,1756247466187,-521.68,0.00027397,5]
[381521469,1756247466196,-356.50857774,0.00027397,5]
[381521470,1756247466205,-992.31,0.00027397,5]
[381521471,1756247466214,-400.0,0.00027397,5]
[381521472,1756247466223,-400.0,0.00027397,5]
[381521473,1756247466232,-400.0,0.00027397,5]
[381521474,1756247466242,-1103.82,0.00027397,5]
[381521475,1756247466251,-853.74,0.00027397,5]
[381521476,1756247466260,-449.02,0.00027397,5]
[381521477,1756247466270,-400.0,0.00027397,5]
[381521478,1756247466280,-651.12,0.00027397,5]
[381521479,1756247466290,-1769.89,0.00027397,5]
[381521480,1756247466299,-692.65,0.00027397,5]
[381521481,1756247466309,-491.56927372,0.00027397,5]
[381521482,1756247466319,-664.51,0.00027397,5]
[381521483,1756247466328,-400.0,0.00027397,5]
[381521484,1756247466344,-579.08,0.00027397,5]
[381521485,1756247466353,-400.0,0.00027397,5]
[381521486,1756247466363,-2146.82,0.00027397,5]
[381521487,1756247466373,-586.13,0.00027397,5]
[381521488,1756247466382,-769.1,0.00027397,5]
[381521489,1756247466392,-497.78,0.00027397,5]
[381521490,1756247466401,-916.33,0.00027397,5]
[381521491,1756247466412,-400.0,0.00027397,5]
[381521492,1756247466421,-400.0,0.00027397,5]
[381521493,1756247466430,-400.0,0.00027397,5]
[381521494,1756247466439,-400.0,0.00027397,5]
[381521495,1756247466448,-1159.11,0.00027397,5]
[381521496,1756247466458,-637.18,0.00027397,5]
[381521497,1756247466467,-638.03,0.00027397,5]
[381521498,1756247466476,-400.0,0.00027397,5]
[381521499,1756247466486,-400.0,0.00027397,5]
[381521500,1756247466495,-400.0,0.00027397,5]
[381521501,1756247466504,-1068.96,0.00027397,5]
[381521502,1756247466512,-640.97,0.00027397,5]
[381521503,1756247466521,-943.38,0.00027397,5]
[381521504,1756247466531,-1011.69,0.00027397,5]
[381521505,1756247466540,-534.56,0.00027397,5]
[381521506,1756247466549,-424.62,0.00027397,5]
[381521507,1756247466559,-400.0,0.00027397,5]
[381521508,1756247466568,-817.63,0.00027397,5]
[381521509,1756247466577,-617.41,0.00027397,5]
[381521510,1756247466586,-1097.58,0.00027397,5]
[381521511,1756247466595,-813.06,0.00027397,5]
[381521512,1756247466605,-1716.37,0.00027397,5]
[381521513,1756247466614,-400.0,0.00027397,5]
[381521514,1756247466623,-400.0,0.00027397,5]
[381521515,1756247466633,-400.0,0.00027397,5]
[381521516,1756247466642,-400.0,0.00027397,5]
[381521517,1756247466652,-244.55281942,0.00027397,5]
[381521518,1756247466660,-851.28,0.00027397,5]
[381521519,1756247466670,-1056.24,0.00027397,5]
[381521520,1756247466678,-538.89,0.00027397,5]
[381521521,1756247466687,-684.82,0.00027397,5]
[381521522,1756247466696,-182.51942939,0.00027397,5]
[381521523,1756247466707,-530.73,0.00027397,5]
[381521524,1756247466716,-470.22,0.00027397,5]
[381521525,1756247466726,-400.0,0.00027397,5]
[381521526,1756247466735,-1636.08,0.00027397,5]